[Event "Betsys MČR v online bleskovém šachu 2021"]
[Site "Chess.com"]
[Date "2021.04.17"]
[Round "6"]
[White "FrantisekP"]
[Black "PetrSoucek"]
[Result "0-1"]
[WhiteElo "1624"]
[BlackElo "2007"]
[TimeControl "180+1"]
[EndTime "9:56:55 PDT"]
[Termination "Uživatel PetrSoucek zvítězil po vzdání soupeře"]

1. d4 {[%clk 0:03:00.9]} 1... d5 {[%clk 0:02:57.3]} 2. Bf4 {[%clk 0:03:00.7]}
2... c5 {[%clk 0:02:54.5]} 3. e3 {[%clk 0:03:00.2]} 3... Nc6 {[%clk 0:02:54.4]}
4. c3 {[%clk 0:02:58.5]} 4... Nf6 {[%clk 0:02:53.2]} 5. Bd3 {[%clk 0:02:58.1]}
5... Qb6 {[%clk 0:02:50]} 6. Qb3 {[%clk 0:02:52.1]} 6... c4 {[%clk 0:02:50]} 7.
Qxb6 {[%clk 0:02:48.9]} 7... axb6 {[%clk 0:02:50.2]} 8. Bc2 {[%clk 0:02:48.7]}
8... b5 {[%clk 0:02:50.4]} 9. h3 {[%clk 0:02:42]} 9... b4 {[%clk 0:02:47.8]} 10.
b3 {[%clk 0:02:28.5]} 10... cxb3 {[%clk 0:02:41]} 11. Bxb3 {[%clk 0:02:27.8]}
11... Bf5 {[%clk 0:02:36.6]} 12. Ne2 {[%clk 0:02:16.1]} 12... e6 {[%clk
0:02:34.8]} 13. O-O {[%clk 0:02:06.1]} 13... Kd7 {[%clk 0:02:20.6]} 14. Nd2
{[%clk 0:01:37.9]} 14... bxc3 {[%clk 0:02:16]} 15. Nxc3 {[%clk 0:01:35.1]} 15...
Bb4 {[%clk 0:02:16.5]} 16. Rfc1 {[%clk 0:01:33.8]} 16... Ba3 {[%clk 0:02:15.5]}
17. Rd1 {[%clk 0:01:24.8]} 17... Bb2 {[%clk 0:02:15.4]} 18. Rac1 {[%clk
0:01:17.5]} 18... Bxc1 {[%clk 0:02:13.9]} 19. Rxc1 {[%clk 0:01:18.4]} 19... Rhc8
{[%clk 0:02:10.5]} 20. Nb5 {[%clk 0:01:10.4]} 20... Ne8 {[%clk 0:02:01.9]} 21.
g4 {[%clk 0:00:53.1]} 21... Bd3 {[%clk 0:01:59.3]} 22. Nc3 {[%clk 0:00:46.4]}
22... f6 {[%clk 0:01:55.1]} 23. h4 {[%clk 0:00:44.5]} 23... Nd6 {[%clk 0:01:51]}
24. Bxd6 {[%clk 0:00:38.8]} 24... Kxd6 {[%clk 0:01:50.6]} 25. Nd1 {[%clk
0:00:36.5]} 25... Nxd4 {[%clk 0:01:46.1]} 26. Rxc8 {[%clk 0:00:33.5]} 26... Ne2+
{[%clk 0:01:46.2]} 27. Kg2 {[%clk 0:00:30.5]} 27... Rxc8 {[%clk 0:01:46.2]} 28.
Nb2 {[%clk 0:00:29.3]} 28... Bg6 {[%clk 0:01:43.8]} 29. h5 {[%clk 0:00:28]}
29... Bc2 {[%clk 0:01:39.1]} 30. Kf3 {[%clk 0:00:22.8]} 30... Bxb3 {[%clk
0:01:21.3]} 31. Nxb3 {[%clk 0:00:17.3]} 31... Nc3 {[%clk 0:01:20.2]} 32. a4
{[%clk 0:00:15.3]} 32... e5 {[%clk 0:01:19.7]} 33. Na5 {[%clk 0:00:12]} 33... b6
{[%clk 0:01:17.2]} 34. Nb3 {[%clk 0:00:10.1]} 34... Ra8 {[%clk 0:01:13.5]} 35.
g5 {[%clk 0:00:09]} 35... Nxa4 {[%clk 0:01:12.3]} 36. Nxa4 {[%clk 0:00:08.4]}
36... Rxa4 {[%clk 0:01:13.2]} 37. Nd2 {[%clk 0:00:08.6]} 37... Ra2 {[%clk
0:01:11]} 38. gxf6 {[%clk 0:00:07.2]} 38... gxf6 {[%clk 0:01:09.2]} 39. Nb3
{[%clk 0:00:06.7]} 39... Kc6 {[%clk 0:01:06.6]} 40. Nc1 {[%clk 0:00:05.8]} 40...
Rc2 {[%clk 0:01:04.3]} 41. Nd3 {[%clk 0:00:05.6]} 41... e4+ {[%clk 0:01:04.3]}
0-1

[Event "Betsys MČR v online bleskovém šachu 2021"]
[Site "Chess.com"]
[Date "2021.04.17"]
[Round "6"]
[White "maelic"]
[Black "androidddd"]
[Result "1-0"]
[WhiteElo "1781"]
[BlackElo "1422"]
[TimeControl "180+1"]
[EndTime "9:56:56 PDT"]
[Termination "Uživatel maelic zvítězil po vzdání soupeře"]

1. d4 {[%clk 0:02:58.7]} 1... Nf6 {[%clk 0:02:58.6]} 2. Bf4 {[%clk 0:02:58.8]}
2... c5 {[%clk 0:02:54.5]} 3. e3 {[%clk 0:02:58.6]} 3... Nc6 {[%clk 0:02:48.2]}
4. c3 {[%clk 0:02:58.8]} 4... cxd4 {[%clk 0:02:47.1]} 5. exd4 {[%clk 0:02:58.9]}
5... d5 {[%clk 0:02:46.9]} 6. Bd3 {[%clk 0:02:54.6]} 6... g6 {[%clk 0:02:45.7]}
7. Nf3 {[%clk 0:02:53]} 7... Bg7 {[%clk 0:02:44.4]} 8. Nbd2 {[%clk 0:02:52.5]}
8... b6 {[%clk 0:02:37.5]} 9. h3 {[%clk 0:02:52.2]} 9... Bb7 {[%clk 0:02:35]}
10. O-O {[%clk 0:02:52.3]} 10... O-O {[%clk 0:02:31.7]} 11. Re1 {[%clk
0:02:48.7]} 11... e6 {[%clk 0:02:27.7]} 12. Ne5 {[%clk 0:02:46.5]} 12... Nxe5
{[%clk 0:02:24.7]} 13. Bxe5 {[%clk 0:02:47.4]} 13... Nd7 {[%clk 0:02:22.1]} 14.
Bxg7 {[%clk 0:02:46.6]} 14... Kxg7 {[%clk 0:02:21.2]} 15. f4 {[%clk 0:02:34.3]}
15... Nf6 {[%clk 0:02:13]} 16. Nf3 {[%clk 0:02:23.8]} 16... Qc7 {[%clk
0:02:06.8]} 17. Ne5 {[%clk 0:02:22.5]} 17... Nd7 {[%clk 0:02:04.7]} 18. Qf3
{[%clk 0:02:11.2]} 18... Nxe5 {[%clk 0:02:00.4]} 19. fxe5 {[%clk 0:02:12.1]}
19... Qe7 {[%clk 0:02:00]} 20. Rf1 {[%clk 0:02:11.4]} 20... f5 {[%clk
0:01:46.9]} 21. exf6+ {[%clk 0:02:09.3]} 21... Qxf6 {[%clk 0:01:45.1]} 22. Qxf6+
{[%clk 0:02:09.2]} 22... Rxf6 {[%clk 0:01:43.5]} 23. Rxf6 {[%clk 0:02:10.1]}
23... Kxf6 {[%clk 0:01:43.5]} 24. Rf1+ {[%clk 0:02:11]} 24... Ke7 {[%clk
0:01:41.8]} 25. g4 {[%clk 0:02:04.8]} 25... Rf8 {[%clk 0:01:24.3]} 26. Rxf8
{[%clk 0:01:58.4]} 26... Kxf8 {[%clk 0:01:22.8]} 27. Kf2 {[%clk 0:01:59.3]}
27... Kf7 {[%clk 0:01:22.7]} 28. g5 {[%clk 0:01:53.9]} 28... Bc8 {[%clk
0:01:16.7]} 29. h4 {[%clk 0:01:52.6]} 29... Bd7 {[%clk 0:01:11.8]} 30. Ke3
{[%clk 0:01:52.8]} 30... Ke7 {[%clk 0:01:06.5]} 31. Kf4 {[%clk 0:01:53]} 31...
Be8 {[%clk 0:01:03.5]} 32. Ke5 {[%clk 0:01:52.6]} 32... Bd7 {[%clk 0:01:01.1]}
33. Ba6 {[%clk 0:01:49.7]} 33... b5 {[%clk 0:00:48.7]} 34. b3 {[%clk 0:01:37.8]}
34... Bc6 {[%clk 0:00:34.4]} 35. Bc8 {[%clk 0:01:32.2]} 35... Bd7 {[%clk
0:00:29.6]} 36. Bxd7 {[%clk 0:01:32.6]} 36... Kxd7 {[%clk 0:00:30]} 37. Kf6
{[%clk 0:01:33.2]} 37... Kd6 {[%clk 0:00:24.2]} 38. b4 {[%clk 0:01:28.3]} 38...
a6 {[%clk 0:00:14.6]} 39. a3 {[%clk 0:01:28.1]} 39... Kd7 {[%clk 0:00:13.1]} 40.
Kg7 {[%clk 0:01:28.5]} 40... e5 {[%clk 0:00:10.7]} 41. dxe5 {[%clk 0:01:27.7]}
41... Ke6 {[%clk 0:00:08.9]} 42. Kxh7 {[%clk 0:01:27.9]} 42... Kxe5 {[%clk
0:00:09.4]} 43. Kxg6 {[%clk 0:01:27.9]} 43... Ke4 {[%clk 0:00:09.9]} 44. h5
{[%clk 0:01:27.9]} 44... Kd3 {[%clk 0:00:10.6]} 45. h6 {[%clk 0:01:28.2]} 45...
Kxc3 {[%clk 0:00:11.3]} 46. h7 {[%clk 0:01:28.7]} 46... d4 {[%clk 0:00:12.1]}
47. h8=Q {[%clk 0:01:28.5]} 47... Kc4 {[%clk 0:00:11.7]} 48. Qh5 {[%clk
0:01:20.5]} 48... d3 {[%clk 0:00:10]} 49. Qd1 {[%clk 0:01:20.4]} 49... Kc3
{[%clk 0:00:09.6]} 50. Kf6 {[%clk 0:01:20.6]} 50... d2 {[%clk 0:00:10]} 51. g6
{[%clk 0:01:20.9]} 51... Kd3 {[%clk 0:00:10.6]} 52. g7 {[%clk 0:01:21.1]} 1-0

[Event "Betsys MČR v online bleskovém šachu 2021"]
[Site "Chess.com"]
[Date "2021.04.17"]
[Round "6"]
[White "Ehlundi"]
[Black "Dale00007"]
[Result "1/2-1/2"]
[WhiteElo "1757"]
[BlackElo "1408"]
[TimeControl "180+1"]
[EndTime "9:56:59 PDT"]
[Termination "Remíza opakováním pozice"]

1. e4 {[%clk 0:03:00.9]} 1... c5 {[%clk 0:02:59]} 2. Nf3 {[%clk 0:03:00.9]} 2...
d6 {[%clk 0:02:58.5]} 3. d4 {[%clk 0:03:01]} 3... cxd4 {[%clk 0:02:58]} 4. Nxd4
{[%clk 0:03:01.2]} 4... Nf6 {[%clk 0:02:58.1]} 5. Bd3 {[%clk 0:03:01.1]} 5... e6
{[%clk 0:02:56.3]} 6. O-O {[%clk 0:03:00.9]} 6... Be7 {[%clk 0:02:55.6]} 7. Be3
{[%clk 0:03:00.8]} 7... O-O {[%clk 0:02:54.8]} 8. f4 {[%clk 0:02:59.5]} 8... Qc7
{[%clk 0:02:41.4]} 9. Nc3 {[%clk 0:02:56.6]} 9... a6 {[%clk 0:02:40.7]} 10. Nf3
{[%clk 0:02:54.6]} 10... Nc6 {[%clk 0:02:26.4]} 11. h3 {[%clk 0:02:44.6]} 11...
b5 {[%clk 0:02:25]} 12. a3 {[%clk 0:02:44.1]} 12... Bb7 {[%clk 0:02:22.3]} 13.
Qe2 {[%clk 0:02:39.7]} 13... Rac8 {[%clk 0:02:08.5]} 14. Rac1 {[%clk 0:02:39.1]}
14... Rfe8 {[%clk 0:01:57.7]} 15. Bf2 {[%clk 0:02:31.5]} 15... h6 {[%clk
0:01:47.5]} 16. Bg3 {[%clk 0:02:15.6]} 16... Nh5 {[%clk 0:01:36.5]} 17. Bh2
{[%clk 0:02:15.5]} 17... Bf6 {[%clk 0:01:27.1]} 18. e5 {[%clk 0:02:04.6]} 18...
dxe5 {[%clk 0:01:23.7]} 19. Nxe5 {[%clk 0:02:01.7]} 19... Nxe5 {[%clk
0:01:19.9]} 20. fxe5 {[%clk 0:01:59.6]} 20... Bg5 {[%clk 0:00:31.7]} 21. Qxh5
{[%clk 0:01:54.5]} 21... Bxc1 {[%clk 0:00:30.7]} 22. Rxc1 {[%clk 0:01:54.5]}
22... Qc6 {[%clk 0:00:30.6]} 23. Qg4 {[%clk 0:01:47.9]} 23... h5 {[%clk
0:00:24.8]} 24. Qe4 {[%clk 0:01:44.3]} 24... Qc5+ {[%clk 0:00:21.2]} 25. Kh1
{[%clk 0:01:34.1]} 25... Bxe4 {[%clk 0:00:20.4]} 26. Nxe4 {[%clk 0:01:34.2]}
26... Qd4 {[%clk 0:00:19.5]} 27. b3 {[%clk 0:01:31]} 27... b4 {[%clk 0:00:14.2]}
28. a4 {[%clk 0:01:30.7]} 28... a5 {[%clk 0:00:13.3]} 29. Bg1 {[%clk 0:01:30.7]}
29... Qb2 {[%clk 0:00:12.8]} 30. Be3 {[%clk 0:01:28.7]} 30... Red8 {[%clk
0:00:11.4]} 31. Nd6 {[%clk 0:01:28.6]} 31... Rc6 {[%clk 0:00:09]} 32. Bc4 {[%clk
0:01:25.5]} 32... Rcxd6 {[%clk 0:00:05.9]} 33. exd6 {[%clk 0:01:25.4]} 33...
Rxd6 {[%clk 0:00:05.9]} 34. Bd3 {[%clk 0:01:25.8]} 34... Kf8 {[%clk 0:00:05.4]}
35. Kh2 {[%clk 0:01:25.9]} 35... Ke7 {[%clk 0:00:05.4]} 36. Rd1 {[%clk
0:01:25.3]} 36... Rxd3 {[%clk 0:00:05]} 37. Rxd3 {[%clk 0:01:24]} 37... Qxc2
{[%clk 0:00:04.6]} 38. Rd2 {[%clk 0:01:19.4]} 38... Qxb3 {[%clk 0:00:04]} 39.
Bc5+ {[%clk 0:01:19.7]} 39... Kf6 {[%clk 0:00:03.5]} 40. Bd4+ {[%clk 0:01:19]}
40... Ke7 {[%clk 0:00:03.1]} 41. Bc5+ {[%clk 0:01:18.5]} 41... Kf6 {[%clk
0:00:03.1]} 42. Bd4+ {[%clk 0:01:18.8]} 42... Ke7 {[%clk 0:00:03.2]} 43. Bc5+
{[%clk 0:01:19.2]} 1/2-1/2

[Event "Betsys MČR v online bleskovém šachu 2021"]
[Site "Chess.com"]
[Date "2021.04.17"]
[Round "6"]
[White "Svisthorsky"]
[Black "Asmodai5"]
[Result "1-0"]
[WhiteElo "1461"]
[BlackElo "1075"]
[TimeControl "180+1"]
[EndTime "9:56:59 PDT"]
[Termination "Uživatel Svisthorsky zvítězil na čas"]

1. d4 {[%clk 0:03:00.9]} 1... d5 {[%clk 0:02:56.8]} 2. c4 {[%clk 0:03:00.8]}
2... e6 {[%clk 0:02:51.9]} 3. Nc3 {[%clk 0:02:59]} 3... Nf6 {[%clk 0:02:51.1]}
4. Bf4 {[%clk 0:02:58.5]} 4... Bd6 {[%clk 0:02:49.5]} 5. Bxd6 {[%clk 0:02:51.9]}
5... cxd6 {[%clk 0:02:43.6]} 6. Nf3 {[%clk 0:02:52.4]} 6... O-O {[%clk
0:02:41.7]} 7. e3 {[%clk 0:02:50.1]} 7... dxc4 {[%clk 0:02:35.2]} 8. Bxc4 {[%clk
0:02:49.2]} 8... d5 {[%clk 0:02:34.5]} 9. Bd3 {[%clk 0:02:48.5]} 9... Nc6 {[%clk
0:02:33.5]} 10. Rc1 {[%clk 0:02:47.5]} 10... Bd7 {[%clk 0:02:31.4]} 11. e4
{[%clk 0:02:45.4]} 11... dxe4 {[%clk 0:02:24.8]} 12. Nxe4 {[%clk 0:02:45]} 12...
Ne7 {[%clk 0:02:19.1]} 13. Nxf6+ {[%clk 0:02:43.2]} 13... gxf6 {[%clk 0:02:14]}
14. O-O {[%clk 0:02:37.5]} 14... Ng6 {[%clk 0:02:13]} 15. Re1 {[%clk 0:02:23.6]}
15... Bc6 {[%clk 0:02:10.6]} 16. Be4 {[%clk 0:02:17.9]} 16... Bxe4 {[%clk
0:02:04.3]} 17. Rxe4 {[%clk 0:02:17.7]} 17... Qd5 {[%clk 0:02:01.1]} 18. Rg4
{[%clk 0:02:06.7]} 18... Qxa2 {[%clk 0:01:47.5]} 19. h4 {[%clk 0:01:59.9]} 19...
Qd5 {[%clk 0:01:43.8]} 20. Rc5 {[%clk 0:01:52.6]} 20... Qd6 {[%clk 0:01:24.3]}
21. h5 {[%clk 0:01:49]} 21... b6 {[%clk 0:01:18.9]} 22. Rc1 {[%clk 0:01:37.3]}
22... Rad8 {[%clk 0:00:44.2]} 23. hxg6 {[%clk 0:01:35.3]} 23... fxg6 {[%clk
0:00:43.7]} 24. Nh4 {[%clk 0:01:16.8]} 24... Qd5 {[%clk 0:00:33.6]} 25. Rc7
{[%clk 0:00:58.1]} 25... Rd7 {[%clk 0:00:30.5]} 26. Rxd7 {[%clk 0:00:55]} 26...
Qxd7 {[%clk 0:00:30.1]} 27. Qd3 {[%clk 0:00:48.2]} 27... Qd5 {[%clk 0:00:27.8]}
28. Nxg6 {[%clk 0:00:41]} 28... Rd8 {[%clk 0:00:08.6]} 29. Ne7+ {[%clk
0:00:38.9]} 29... Kf7 {[%clk 0:00:06.4]} 30. Nxd5 {[%clk 0:00:38.5]} 30... Rxd5
{[%clk 0:00:05.4]} 31. Qxh7+ {[%clk 0:00:38.3]} 1-0

[Event "Betsys MČR v online bleskovém šachu 2021"]
[Site "Chess.com"]
[Date "2021.04.17"]
[Round "6"]
[White "Lunaticx"]
[Black "Trickov"]
[Result "1-0"]
[WhiteElo "2992"]
[BlackElo "2394"]
[TimeControl "180+1"]
[EndTime "9:57:00 PDT"]
[Termination "Uživatel Lunaticx zvítězil na čas"]

1. e4 {[%clk 0:02:52.4]} 1... c5 {[%clk 0:02:59.3]} 2. Nf3 {[%clk 0:02:52.5]}
2... d6 {[%clk 0:02:58.3]} 3. Bb5+ {[%clk 0:02:51.9]} 3... Bd7 {[%clk
0:02:52.2]} 4. a4 {[%clk 0:02:51.4]} 4... a6 {[%clk 0:02:47.1]} 5. Bxd7+ {[%clk
0:02:50.5]} 5... Nxd7 {[%clk 0:02:46.1]} 6. a5 {[%clk 0:02:50.6]} 6... Ngf6
{[%clk 0:02:40.4]} 7. Nc3 {[%clk 0:02:48.5]} 7... g6 {[%clk 0:02:34.2]} 8. O-O
{[%clk 0:02:48.1]} 8... Bg7 {[%clk 0:02:33.5]} 9. d3 {[%clk 0:02:48.2]} 9... O-O
{[%clk 0:02:32.4]} 10. h3 {[%clk 0:02:48]} 10... Rc8 {[%clk 0:02:27.8]} 11. Re1
{[%clk 0:02:47.1]} 11... e6 {[%clk 0:02:24.7]} 12. Bf4 {[%clk 0:02:45.2]} 12...
Qc7 {[%clk 0:02:18.1]} 13. Nd2 {[%clk 0:02:44.5]} 13... Ne5 {[%clk 0:02:13.2]}
14. Bxe5 {[%clk 0:02:43.5]} 14... dxe5 {[%clk 0:02:12.7]} 15. Nc4 {[%clk
0:02:44.2]} 15... Nd7 {[%clk 0:02:08.9]} 16. Qe2 {[%clk 0:02:40.6]} 16... Nb8
{[%clk 0:02:03.5]} 17. Na4 {[%clk 0:02:37.8]} 17... Qe7 {[%clk 0:01:40]} 18.
Nab6 {[%clk 0:02:36.8]} 18... Rcd8 {[%clk 0:01:37.3]} 19. Qe3 {[%clk 0:02:33.1]}
19... Nc6 {[%clk 0:01:29.8]} 20. c3 {[%clk 0:02:26.1]} 20... h5 {[%clk
0:01:25.3]} 21. Na4 {[%clk 0:02:25.1]} 21... Kh7 {[%clk 0:01:07.5]} 22. Red1
{[%clk 0:02:20.1]} 22... Rc8 {[%clk 0:00:50.3]} 23. Qxc5 {[%clk 0:02:18.7]}
23... Qd8 {[%clk 0:00:42]} 24. Qb6 {[%clk 0:02:16.7]} 24... Qe7 {[%clk
0:00:41.6]} 25. Qe3 {[%clk 0:02:13.1]} 25... Bh6 {[%clk 0:00:37.8]} 26. Qe2
{[%clk 0:02:13]} 26... Rfd8 {[%clk 0:00:28.8]} 27. Nab6 {[%clk 0:02:12.7]} 27...
Rc7 {[%clk 0:00:28.5]} 28. b4 {[%clk 0:02:12.7]} 28... Nb8 {[%clk 0:00:22]} 29.
Na4 {[%clk 0:02:07.7]} 29... Nc6 {[%clk 0:00:18.9]} 30. Nc5 {[%clk 0:02:05.5]}
30... Rcc8 {[%clk 0:00:15.6]} 31. Na4 {[%clk 0:01:44.3]} 31... Na7 {[%clk
0:00:15.3]} 32. Ncb6 {[%clk 0:01:40.4]} 32... Rc7 {[%clk 0:00:14.6]} 33. Rab1
{[%clk 0:01:33.9]} 33... Nb5 {[%clk 0:00:14.2]} 34. Rb3 {[%clk 0:01:32.8]} 34...
Qe8 {[%clk 0:00:12]} 35. Nc5 {[%clk 0:01:31.6]} 35... Qe7 {[%clk 0:00:10.5]} 36.
Nc4 {[%clk 0:01:28.1]} 36... Na7 {[%clk 0:00:09.9]} 37. Nxe5 {[%clk 0:01:27.3]}
37... Bg7 {[%clk 0:00:08.9]} 38. Nf3 {[%clk 0:01:24.7]} 38... Nc6 {[%clk
0:00:08]} 39. d4 {[%clk 0:01:24.8]} 39... Na7 {[%clk 0:00:06.1]} 40. e5 {[%clk
0:01:22.8]} 40... Nb5 {[%clk 0:00:05.5]} 41. h4 {[%clk 0:01:18.8]} 41... Bh6
{[%clk 0:00:04.6]} 42. g3 {[%clk 0:01:19]} 42... Rcc8 {[%clk 0:00:03.4]} 43. Qe4
{[%clk 0:01:18.2]} 43... Rc7 {[%clk 0:00:02.4]} 44. Rd3 {[%clk 0:01:15.2]} 44...
Na7 {[%clk 0:00:02.3]} 45. Qe1 {[%clk 0:01:14.1]} 45... Nc6 {[%clk 0:00:02.4]}
46. Ne4 {[%clk 0:01:13.9]} 1-0

[Event "Betsys MČR v online bleskovém šachu 2021"]
[Site "Chess.com"]
[Date "2021.04.17"]
[Round "6"]
[White "Maldaj"]
[Black "Zavurka1975"]
[Result "1-0"]
[WhiteElo "2414"]
[BlackElo "2211"]
[TimeControl "180+1"]
[EndTime "9:57:01 PDT"]
[Termination "Uživatel Maldaj zvítězil po vzdání soupeře"]

1. e4 {[%clk 0:03:00.9]} 1... b6 {[%clk 0:02:58.9]} 2. d4 {[%clk 0:03:00.6]}
2... Bb7 {[%clk 0:02:58.8]} 3. Nc3 {[%clk 0:03:00.9]} 3... e6 {[%clk 0:02:58.9]}
4. Bd3 {[%clk 0:02:58.8]} 4... Nf6 {[%clk 0:02:58]} 5. a3 {[%clk 0:02:53.1]}
5... d5 {[%clk 0:02:57.3]} 6. e5 {[%clk 0:02:53.1]} 6... Nfd7 {[%clk 0:02:57.2]}
7. Nce2 {[%clk 0:02:49.4]} 7... c5 {[%clk 0:02:56.8]} 8. c3 {[%clk 0:02:49.8]}
8... Ba6 {[%clk 0:02:54.6]} 9. Bxa6 {[%clk 0:02:48.3]} 9... Nxa6 {[%clk
0:02:54]} 10. f4 {[%clk 0:02:49.2]} 10... Be7 {[%clk 0:02:48.9]} 11. Nf3 {[%clk
0:02:49.2]} 11... O-O {[%clk 0:02:48]} 12. O-O {[%clk 0:02:48.6]} 12... g6
{[%clk 0:02:46.4]} 13. Qe1 {[%clk 0:02:48.3]} 13... Nab8 {[%clk 0:02:42.3]} 14.
Qg3 {[%clk 0:02:47.1]} 14... Nc6 {[%clk 0:02:37.2]} 15. h4 {[%clk 0:02:44]}
15... h5 {[%clk 0:02:29]} 16. f5 {[%clk 0:02:43.8]} 16... exf5 {[%clk 0:02:26]}
17. e6 {[%clk 0:02:43.6]} 17... Nf6 {[%clk 0:02:14.3]} 18. exf7+ {[%clk
0:02:43.2]} 18... Kg7 {[%clk 0:01:48.8]} 19. Ng5 {[%clk 0:02:39.6]} 19... Qd7
{[%clk 0:01:38.4]} 20. Nf4 {[%clk 0:02:39.6]} 20... Ng4 {[%clk 0:00:58.5]} 21.
Nfe6+ {[%clk 0:02:31.9]} 21... Kh8 {[%clk 0:00:51.9]} 22. Nxf8 {[%clk
0:02:19.6]} 22... Rxf8 {[%clk 0:00:51.3]} 23. Bf4 {[%clk 0:02:12.5]} 23... Bxg5
{[%clk 0:00:48.7]} 24. hxg5 {[%clk 0:02:10.9]} 24... Qxf7 {[%clk 0:00:46.8]} 25.
Rae1 {[%clk 0:02:03.9]} 25... cxd4 {[%clk 0:00:40.6]} 26. cxd4 {[%clk
0:02:03.6]} 26... Nxd4 {[%clk 0:00:39.7]} 27. Be5+ {[%clk 0:01:59.7]} 27... Nxe5
{[%clk 0:00:38.6]} 28. Qxe5+ {[%clk 0:02:00.6]} 28... Qg7 {[%clk 0:00:36.8]} 29.
Qxg7+ {[%clk 0:02:00.1]} 29... Kxg7 {[%clk 0:00:36.7]} 30. Re7+ {[%clk
0:02:00.4]} 30... Rf7 {[%clk 0:00:36.6]} 31. Rxf7+ {[%clk 0:01:55.3]} 31... Kxf7
{[%clk 0:00:36]} 32. Rd1 {[%clk 0:01:55.8]} 32... Ne6 {[%clk 0:00:26.6]} 33.
Rxd5 {[%clk 0:01:55]} 33... Ke7 {[%clk 0:00:25.7]} 34. a4 {[%clk 0:01:41.2]}
34... Nxg5 {[%clk 0:00:25.4]} 35. a5 {[%clk 0:01:41.4]} 35... Ne4 {[%clk
0:00:23.8]} 36. axb6 {[%clk 0:01:40]} 36... axb6 {[%clk 0:00:23.6]} 37. Rb5
{[%clk 0:01:38.1]} 37... f4 {[%clk 0:00:20.4]} 38. Rxb6 {[%clk 0:01:36.4]} 38...
g5 {[%clk 0:00:20.4]} 39. b4 {[%clk 0:01:35.5]} 39... g4 {[%clk 0:00:19.8]} 40.
b5 {[%clk 0:01:34.5]} 40... f3 {[%clk 0:00:19.2]} 41. gxf3 {[%clk 0:01:34.1]}
41... gxf3 {[%clk 0:00:19.2]} 42. Rh6 {[%clk 0:01:31.2]} 42... f2+ {[%clk
0:00:15]} 43. Kf1 {[%clk 0:01:29.5]} 43... Kf7 {[%clk 0:00:15.1]} 44. b6 {[%clk
0:01:28.9]} 44... Kg7 {[%clk 0:00:14.7]} 45. Re6 {[%clk 0:01:20.2]} 45... Nc5
{[%clk 0:00:11.9]} 46. Re5 {[%clk 0:01:19.4]} 46... Nb7 {[%clk 0:00:09.2]} 47.
Re7+ {[%clk 0:01:19.3]} 47... Kf6 {[%clk 0:00:09.2]} 48. Rxb7 {[%clk 0:01:18.9]}
1-0

[Event "Betsys MČR v online bleskovém šachu 2021"]
[Site "Chess.com"]
[Date "2021.04.17"]
[Round "6"]
[White "Honza_13"]
[Black "Clockwork7orange"]
[Result "0-1"]
[WhiteElo "1951"]
[BlackElo "2320"]
[TimeControl "180+1"]
[EndTime "9:57:01 PDT"]
[Termination "Uživatel Clockwork7orange zvítězil na čas"]

1. Nf3 {[%clk 0:02:18.9]} 1... c5 {[%clk 0:02:59.6]} 2. g3 {[%clk 0:02:16.6]}
2... Nc6 {[%clk 0:03:00]} 3. d4 {[%clk 0:02:16.1]} 3... d6 {[%clk 0:03:00.9]} 4.
Bg2 {[%clk 0:02:14.9]} 4... cxd4 {[%clk 0:03:00.7]} 5. Nxd4 {[%clk 0:02:14.2]}
5... Bd7 {[%clk 0:03:01.6]} 6. O-O {[%clk 0:02:13.6]} 6... g6 {[%clk 0:03:00.1]}
7. b3 {[%clk 0:02:02.9]} 7... Bg7 {[%clk 0:02:59.1]} 8. Bb2 {[%clk 0:02:02.9]}
8... Nf6 {[%clk 0:02:59.6]} 9. c4 {[%clk 0:02:02.4]} 9... O-O {[%clk 0:02:59.4]}
10. Nc3 {[%clk 0:02:02.5]} 10... a6 {[%clk 0:02:59.3]} 11. e4 {[%clk 0:02:01.8]}
11... Nxd4 {[%clk 0:02:57.7]} 12. Qxd4 {[%clk 0:02:01.3]} 12... Bc6 {[%clk
0:02:55.6]} 13. Qe3 {[%clk 0:01:55.4]} 13... b5 {[%clk 0:02:42]} 14. cxb5 {[%clk
0:01:45.1]} 14... axb5 {[%clk 0:02:42.9]} 15. Rfd1 {[%clk 0:01:38.3]} 15... b4
{[%clk 0:02:40.9]} 16. Ne2 {[%clk 0:01:27.3]} 16... Ng4 {[%clk 0:02:36.8]} 17.
Qd2 {[%clk 0:01:26.2]} 17... Bxb2 {[%clk 0:02:19.3]} 18. Qxb2 {[%clk 0:01:25.8]}
18... Qb6 {[%clk 0:02:19.1]} 19. Nd4 {[%clk 0:01:22.4]} 19... Bb7 {[%clk
0:02:07.8]} 20. h3 {[%clk 0:01:18]} 20... Nf6 {[%clk 0:02:04.8]} 21. Qe2 {[%clk
0:00:58.3]} 21... Ra5 {[%clk 0:02:00.7]} 22. Kh2 {[%clk 0:00:32.8]} 22... Rc8
{[%clk 0:01:57.5]} 23. f4 {[%clk 0:00:23.4]} 23... Nd7 {[%clk 0:01:46.8]} 24.
Nf3 {[%clk 0:00:16.3]} 24... e5 {[%clk 0:01:29.4]} 25. Ng5 {[%clk 0:00:10.2]}
25... Nf6 {[%clk 0:01:10]} 26. Rac1 {[%clk 0:00:08.2]} 26... Rxc1 {[%clk
0:01:02.8]} 27. Rxc1 {[%clk 0:00:09.1]} 27... h6 {[%clk 0:01:01.3]} 28. Nf3
{[%clk 0:00:06.6]} 28... Bxe4 {[%clk 0:00:55.6]} 29. fxe5 {[%clk 0:00:04.7]}
29... dxe5 {[%clk 0:00:54.6]} 30. Nd2 {[%clk 0:00:02.4]} 30... Bxg2 {[%clk
0:00:52.1]} 31. Qxg2 {[%clk 0:00:03.3]} 31... Rxa2 {[%clk 0:00:50.4]} 32. Rc8+
{[%clk 0:00:01.6]} 32... Kg7 {[%clk 0:00:50.2]} 33. Kh1 {[%clk 0:00:01.4]} 33...
Qe3 {[%clk 0:00:46.3]} 0-1